fUST/lending_fUST_20240423
["ID","MTS","AMOUNT","RATE_DAILY","PERIOD"]
[323271063,1713861041856,-557.7,0.00021907,3]
[323271065,1713861041865,-500.0,0.00021917,2]
[323271067,1713861041874,-6403.17385472,0.00022169,2]
[323271263,1713861043498,-1424.77096809,0.00021917,2]
[323271265,1713861043510,-458.81903191,0.00021917,2]
[323271267,1713861043519,-2990.34249902,0.00022169,2]
[323271269,1713861043528,-460.66889145,0.00022187,2]
[323271271,1713861043538,-207.23945787,0.00022187,2]
[323271273,1713861043547,-474.60169326,0.00022188,2]
[323271275,1713861043556,-1090.08472256,0.00022188,2]
[323271277,1713861043565,-1311.22668928,0.00022188,2]
[323271279,1713861043574,-227.38124506,0.00022188,2]
[323271281,1713861043584,-234.33538806,0.00022189,2]
[323271283,1713861043593,-1108.23868757,0.00022189,2]
[323271285,1713861043601,-157.93707583,0.00022189,2]
[323271287,1713861043610,-652.66434688,0.00022189,2]
[323271289,1713861043619,-539.63707301,0.00022189,2]
[323271291,1713861043628,-1371.03323779,0.0002219,2]
[323271293,1713861043638,-500.0,0.0002219,2]
[323271295,1713861043647,-500.0,0.0002219,2]
[323271297,1713861043656,-150.46331167,0.0002219,2]
[323271299,1713861043664,-500.0,0.00022191,2]
[323271301,1713861043673,-500.0,0.00022191,2]
[323271303,1713861043682,-500.0,0.00022191,2]
[323271305,1713861043691,-500.0,0.00022191,2]
[323271307,1713861043699,-792.59,0.00022191,2]
[323271309,1713861043708,-500.0,0.00022191,2]
[323271311,1713861043717,-500.0,0.00022191,2]
[323271324,1713861043820,-500.0,0.00022191,2]
[323271326,1713861043830,-516.65517634,0.00022191,2]
[323271328,1713861043840,-500.0,0.00022191,2]
[323271330,1713861043850,-592.69391137,0.00022191,2]
[323271332,1713861043859,-500.0,0.00022191,2]
[323271334,1713861043868,-500.0,0.00022191,2]
[323271336,1713861043877,-500.0,0.00022191,2]
[323271338,1713861043886,-500.0,0.00022191,2]
[323271340,1713861043896,-500.0,0.00022191,2]
[323271342,1713861043905,-500.0,0.00022191,2]
[323271344,1713861043914,-500.0,0.00022191,2]
[323271346,1713861043926,-500.0,0.00022191,2]
[323271348,1713861043935,-500.0,0.00022191,2]
[323271350,1713861043944,-500.0,0.00022191,2]
[323271352,1713861043953,-500.0,0.00022191,2]
[323271354,1713861043963,-500.0,0.00022191,2]
[323271356,1713861043972,-500.0,0.00022191,2]
[323271358,1713861043980,-504.18612698,0.00022191,2]
[323271360,1713861043989,-500.0,0.00022191,2]
[323271362,1713861043998,-500.0,0.00022191,2]
[323271364,1713861044007,-500.0,0.00022191,2]
[323271366,1713861044016,-500.0,0.00022191,2]
[323271368,1713861044025,-518.30321187,0.00022191,2]
[323271370,1713861044035,-500.0,0.00022191,2]
[323271372,1713861044044,-500.0,0.00022191,2]
[323271374,1713861044054,-500.0,0.00022191,2]
[323271376,1713861044063,-500.0,0.00022191,2]
[323271378,1713861044072,-162.44588072,0.00022191,2]
[323271380,1713861044081,-707.89,0.00022191,2]
[323271382,1713861044090,-500.0,0.00022191,2]
[323271384,1713861044099,-500.0,0.00022191,2]
[323271386,1713861044108,-500.0,0.00022191,2]
[323271388,1713861044117,-872.62,0.00022191,2]
[323271390,1713861044126,-500.0,0.00022191,2]
[323271392,1713861044135,-500.0,0.00022191,2]
[323271394,1713861044144,-500.0,0.00022191,2]
[323271396,1713861044153,-500.0,0.00022191,2]
[323271398,1713861044163,-500.0,0.00022191,2]
[323271400,1713861044172,-151.0,0.00022191,2]
[323271402,1713861044181,-500.0,0.00022191,2]
[323271404,1713861044190,-1367.83,0.00022191,2]
[323271406,1713861044199,-500.0,0.00022191,2]
[323271408,1713861044208,-500.0,0.00022191,2]
[323271410,1713861044218,-500.0,0.00022191,2]
[323271412,1713861044228,-509.15,0.00022191,2]
[323271414,1713861044238,-739.43,0.00022191,2]
[323271416,1713861044248,-425.62500222,0.00022191,2]
[323271418,1713861044257,-502.68787643,0.00022191,2]
[323271420,1713861044265,-500.0,0.00022191,2]
[323271422,1713861044274,-501.56168682,0.00022191,2]
[323271424,1713861044283,-500.0,0.00022191,2]
[323271426,1713861044292,-500.0,0.00022191,2]
[323271428,1713861044301,-587.21,0.00022191,2]
[323271430,1713861044310,-500.0,0.00022191,2]
[323271432,1713861044319,-1075.85,0.00022191,2]
[323271434,1713861044328,-500.0,0.00022191,2]
[323271436,1713861044337,-500.0,0.00022191,2]
[323271438,1713861044346,-500.0,0.00022191,2]
[323271440,1713861044355,-500.0,0.00022191,2]
[323271442,1713861044364,-500.0,0.00022191,2]
[323271444,1713861044373,-1123.24,0.00022191,2]
[323271446,1713861044382,-1290.4,0.00022191,2]
[323271448,1713861044392,-500.0,0.00022191,2]
[323271450,1713861044403,-151.0,0.00022191,2]
[323271452,1713861044412,-500.0,0.00022191,2]
[323271454,1713861044422,-500.0,0.00022191,2]
[323271456,1713861044431,-764.31,0.00022191,2]
[323271458,1713861044440,-500.0,0.00022191,2]
[323271460,1713861044449,-500.0,0.00022191,2]
[323271462,1713861044458,-500.0,0.00022191,2]
[323271464,1713861044468,-500.0,0.00022191,2]
[323271466,1713861044477,-691.21,0.00022191,2]
[323271468,1713861044486,-206.59761713,0.00022191,2]
[323271470,1713861044495,-151.0,0.00022191,2]
[323271472,1713861044504,-500.0,0.00022191,2]
[323271474,1713861044513,-707.38,0.00022191,2]
[323271476,1713861044522,-500.0,0.00022191,2]
[323271478,1713861044531,-500.0,0.00022191,2]
[323271480,1713861044541,-500.0,0.00022191,2]
[323271483,1713861044558,-627.74,0.00022191,2]
[323271486,1713861044573,-500.0,0.00022191,2]
[323271488,1713861044585,-500.0,0.00022191,2]
[323271490,1713861044600,-500.0,0.00022191,2]
[323271493,1713861044613,-150.68542701,0.00022191,2]
[323271496,1713861044628,-500.0,0.00022191,2]
[323271498,1713861044642,-500.0,0.00022191,2]
[323271501,1713861044654,-500.0,0.00022191,2]
[323271503,1713861044667,-500.0,0.00022191,2]
[323271505,1713861044680,-692.85,0.00022191,2]
[323271508,1713861044694,-500.0,0.00022191,2]
[323271510,1713861044708,-535.16,0.00022191,2]
[323271513,1713861044720,-500.0,0.00022191,2]
[323271515,1713861044733,-689.86,0.00022191,2]
[323271518,1713861044747,-500.0,0.00022191,2]
[323271520,1713861044762,-500.0,0.00022191,2]
[323271523,1713861044774,-500.0,0.00022191,2]
[323271525,1713861044787,-769.99,0.00022191,2]
[323271528,1713861044801,-1706.31,0.00022191,2]
[323271530,1713861044815,-1028.66,0.00022191,2]
[323271532,1713861044831,-505.72068114,0.00022191,2]
[323271535,1713861044845,-500.0,0.00022191,2]
[323271537,1713861044856,-500.0,0.00022191,2]
[323271539,1713861044867,-807.92,0.00022191,2]
[323271542,1713861044880,-500.0,0.00022191,2]
[323271544,1713861044893,-1039.592624,0.00022191,2]
[323271547,1713861044907,-508.45515038,0.00022191,2]
[323271549,1713861044918,-1039.592624,0.00022191,2]
[323271551,1713861044929,-641.416598,0.00022191,2]
[323271553,1713861044940,-641.416598,0.00022191,2]
[323271556,1713861044953,-500.0,0.00022191,2]
[323271558,1713861044965,-2164.0,0.00022191,2]
[323271560,1713861044978,-500.0,0.00022191,2]
[323271563,1713861044990,-1182.88,0.00022191,2]
[323271565,1713861045001,-500.0,0.00022191,2]
[323271567,1713861045014,-500.0,0.00022191,2]
[323271570,1713861045025,-703.52,0.00022191,2]
[323271572,1713861045037,-500.0,0.00022191,2]
[323271574,1713861045050,-500.0,0.00022191,2]
[323271577,1713861045063,-151.0,0.00022191,2]
[323271579,1713861045075,-664.37,0.00022191,2]
[323271581,1713861045088,-500.0,0.00022191,2]
[323271584,1713861045100,-500.0,0.00022191,2]
[323271586,1713861045112,-25305.05,0.00022191,2]
[323271588,1713861045124,-500.0,0.00022191,2]
[323271590,1713861045137,-500.0,0.00022191,2]
[323271593,1713861045149,-151.0,0.00022191,2]
[323271595,1713861045162,-500.0,0.00022191,2]
[323271597,1713861045174,-151.0,0.00022191,2]
[323271600,1713861045186,-2521.84,0.00022191,2]
[323271602,1713861045198,-586.53,0.00022191,2]
[323271604,1713861045210,-500.0,0.00022191,2]
[323271607,1713861045222,-500.0,0.00022191,2]
[323271609,1713861045234,-500.0,0.00022191,2]
[323271611,1713861045246,-500.0,0.00022191,2]
[323271614,1713861045258,-1858.88,0.00022191,2]
[323271616,1713861045269,-791.44,0.00022191,2]
[323271618,1713861045280,-500.0,0.00022191,2]
[323271620,1713861045292,-500.0,0.00022191,2]
[323271623,1713861045304,-500.0,0.00022191,2]
[323271624,1713861045315,-277.28275232,0.00022191,2]
[323271625,1713861045326,-1790.92,0.00022191,2]
[323271626,1713861045337,-500.0,0.00022191,2]
[323271627,1713861045348,-500.0,0.00022191,2]
[323271628,1713861045360,-500.0,0.00022191,2]
[323271629,1713861045369,-522.16,0.00022191,2]
[323271630,1713861045377,-500.0,0.00022191,2]
[323271631,1713861045386,-500.0,0.00022191,2]
[323271632,1713861045399,-1575.12,0.00022191,2]
[323271633,1713861045408,-500.0,0.00022191,2]
[323271634,1713861045417,-500.0,0.00022191,2]
[323271635,1713861045426,-500.0,0.00022191,2]
[323271636,1713861045436,-500.0,0.00022191,2]
[323271637,1713861045445,-500.0,0.00022191,2]
[323271638,1713861045453,-500.0,0.00022191,2]
[323271639,1713861045463,-500.0,0.00022191,2]
[323271653,1713861045617,-2324.37,0.00022191,2]
[323271656,1713861045634,-500.0,0.00022191,2]
[323271658,1713861045644,-2321.81,0.00022191,2]
[323271660,1713861045653,-500.0,0.00022191,2]
[323271662,1713861045661,-500.0,0.00022191,2]
[323271663,1713861045670,-500.0,0.00022191,2]
[323271665,1713861045679,-278.06432369,0.00022191,2]
[323271668,1713861045693,-3192.15179086,0.00022191,2]
[323271741,1713861046383,-603.3578092,0.00021906,2]
[323271743,1713861046395,-500.17158671,0.00021917,2]
[323271745,1713861046405,-7036.97388545,0.00022191,2]
[323271747,1713861046414,-500.0,0.00022191,2]
[323271749,1713861046423,-111.10906022,0.00022191,2]
[323272908,1713861933101,-272.57129579,0.00018057,2]
[323272909,1713861933120,-22.38724698,0.00018058,2]
[323272913,1713862044105,-300.0,0.00018057,2]
[323272914,1713862044126,-300.0,0.00018057,2]
[323272915,1713862044146,-221.86358459,0.00018058,2]
[323272916,1713862044167,-19184.99388325,0.00018058,2]
[323272917,1713862044188,-154.82968734,0.00018058,2]
[323272918,1713862044207,-344.43188625,0.00018064,2]
[323272919,1713862044228,-371.750233,0.00018065,2]
[323272920,1713862044247,-603.3578092,0.00018783,2]
[323272921,1713862044267,-24900.0,0.00018784,2]
[323272922,1713862044287,-4112.74790673,0.000189,2]
[323272923,1713862044307,-189.19295912,0.0001897,2]
[323272924,1713862044328,-615.75933218,0.00019177,2]
[323272925,1713862044348,-167.567261,0.00019178,2]
[323272926,1713862044368,-166.383109,0.00019178,2]
[323272927,1713862044387,-18411.15674293,0.00019609,2]
[323272928,1713862044413,-420.0,0.00019701,2]
[323272929,1713862044434,-7589.05936054,0.00019716,2]
[323272930,1713862044455,-188.81822926,0.00019772,2]
[323272931,1713862044480,-420.0,0.00019863,2]
[323272932,1713862044500,-2215.93,0.0001999,3]
[323272933,1713862044519,-846.36340449,0.0001999,3]
[323272936,1713862161111,-291.74512236,0.00017958,2]
[323272937,1713862161129,-276.87957595,0.00018058,2]
[323272938,1713862161150,-19482.82865418,0.00018952,2]
[323272939,1713862170088,-344.43188625,0.00018951,2]
[323272940,1713862170109,-2189.63038567,0.00018952,2]
[323273053,1713862238364,-271.582463,0.00018852,2]
[323273054,1713862238375,-19184.99388325,0.00018952,2]
[323273055,1713862238385,-221.86358459,0.00018952,2]
[323273056,1713862238394,-3227.54096015,0.00018952,2]
[323273057,1713862238404,-189.19295912,0.0001897,2]
[323273058,1713862238413,-615.75933218,0.00019,2]
[323273059,1713862238422,-300.0,0.00019989,2]
[323273060,1713862238431,-300.0,0.00019989,2]
[323273061,1713862238440,-391.76,0.0001999,3]
[323273062,1713862238456,-1542.3,0.0001999,3]
[323273063,1713862238470,-869.1,0.0001999,3]
[323273065,1713862238480,-200.0,0.0001999,2]
[323273068,1713862238489,-434.55,0.0001999,3]
[323273070,1713862238499,-217.28,0.0001999,3]
[323273072,1713862238508,-651.85,0.0001999,3]
[323273073,1713862238518,-343.87101956,0.00019998,2]
[323273075,1713862238527,-287.66756042,0.00019998,2]
[323273076,1713862238536,-954.1175825,0.00019999,2]
[323273077,1713862238546,-155.73840481,0.00019999,2]
[323273078,1713862238555,-172.61406582,0.00019999,2]
[323273079,1713862238566,-500.0,0.00019999,2]
[323273080,1713862238575,-442.71151834,0.00019999,2]
[323273081,1713862238586,-589.41137487,0.00019999,2]
[323273084,1713862238595,-304.93401374,0.00019999,2]
[323273087,1713862238605,-319.72058798,0.0002,2]
[323273090,1713862238614,-241.51912105,0.0002,2]
[323273093,1713862238623,-354.80715765,0.0002,2]
[323273095,1713862238632,-154.82968734,0.0002,2]
[323273097,1713862238641,-678.04287141,0.0002,2]
[323273099,1713862238651,-80000.0,0.0002,2]
[323273101,1713862238660,-689.46452953,0.0002,2]
[323273103,1713862238669,-277.98874346,0.0002,2]
[323273105,1713862238679,-524.5590718,0.0002,4]
[323273107,1713862238688,-238.88786072,0.0002,2]
[323273109,1713862238697,-154.82968734,0.0002,2]
[323273111,1713862238707,-400.0,0.0002,2]
[323273113,1713862238717,-154.82968734,0.0002,2]
[323273116,1713862238726,-2769.07414268,0.0002,2]
[323273118,1713862238736,-5459.67159958,0.0002,2]
[323273120,1713862238747,-200.0,0.0002,2]
[323273121,1713862238757,-3344.28028285,0.00021,2]
[323273123,1713862238767,-7925.57647667,0.00021,2]
[323273125,1713862238776,-153.0,0.0002126,2]
[323273127,1713862238786,-5000.0,0.000213,2]
[323273129,1713862238796,-3084.6,0.0002136,3]
[323273131,1713862238805,-1738.2,0.0002136,3]
[323273133,1713862238814,-869.1,0.0002136,3]
[323273135,1713862238825,-434.56,0.0002136,3]
[323273137,1713862238836,-420.0,0.00021766,2]
[323273139,1713862238845,-247.22010741,0.00021815,2]
[323273141,1713862238855,-974.7110166,0.00021879,2]
[323273143,1713862238864,-183.31048361,0.00021914,2]
[323273145,1713862238875,-1090.08472256,0.00021914,2]
[323273147,1713862238884,-539.63707301,0.00021915,2]
[323273149,1713862238893,-180.29576103,0.00021916,2]
[323273151,1713862238902,-197.96771572,0.00021916,2]
[323273153,1713862238912,-553.83136724,0.00021916,2]
[323273156,1713862238922,-500.0,0.00021916,2]
[323273158,1713862238931,-176.06799262,0.00021916,2]
[323273160,1713862238941,-151.0,0.00021917,2]
[323273161,1713862238951,-500.0,0.00021917,2]
[323273164,1713862238960,-1253.84,0.00021917,2]
[323273166,1713862238969,-500.0,0.00021917,2]
[323273168,1713862238979,-495.42798901,0.00021917,2]
[323273170,1713862238988,-500.0,0.00021917,2]
[323273172,1713862238997,-500.0,0.00021917,2]
[323273174,1713862239006,-504.26873088,0.00021917,2]
[323273176,1713862239015,-1236.64,0.00021917,2]
[323273178,1713862239024,-506.35109438,0.00021917,2]
[323273179,1713862239033,-601.58,0.00021917,2]
[323273181,1713862239042,-500.0,0.00021917,2]
[323273183,1713862239051,-500.0,0.00021917,2]
[323273185,1713862239060,-500.0,0.00021917,2]
[323273187,1713862239069,-500.2727508,0.00021917,2]
[323273189,1713862239079,-500.0,0.00021917,2]
[323273191,1713862239090,-500.0,0.00021917,2]
[323273193,1713862239100,-500.0,0.00021917,2]
[323273195,1713862239109,-513.54773408,0.00021917,2]
[323273197,1713862239118,-315.25766875,0.00021917,2]
[323273199,1713862239127,-500.0,0.00021917,2]
[323273217,1713862239282,-505.86513601,0.00021917,2]
[323273219,1713862239291,-500.0,0.00021917,2]
[323273221,1713862239300,-500.0,0.00021917,2]
[323273222,1713862239309,-503.64023074,0.00021917,2]
[323273224,1713862239319,-500.0,0.00021917,2]
[323273226,1713862239328,-505.63024773,0.00021917,2]
[323273228,1713862239339,-503.02512277,0.00021917,2]
[323273230,1713862239348,-500.0,0.00021917,2]
[323273232,1713862239357,-281.01822611,0.00021917,2]
[323273234,1713862239366,-500.0,0.00021917,2]
[323273236,1713862239375,-500.0,0.00021917,2]
[323273238,1713862239384,-500.0,0.00021917,2]
[323273240,1713862239393,-500.0,0.00021917,2]
[323273242,1713862239401,-500.0,0.00021917,2]
[323273244,1713862239410,-500.0,0.00021917,2]
[323273246,1713862239419,-500.0,0.00021917,2]
[323273248,1713862239428,-252.16044463,0.00021917,2]
[323273250,1713862239437,-500.0,0.00021917,2]
[323273252,1713862239446,-836.26,0.00021917,2]
[323273254,1713862239455,-500.0,0.00021917,2]
[323273256,1713862239464,-500.0,0.00021917,2]
[323273258,1713862239473,-322.84488904,0.00021917,2]
[323273260,1713862239482,-500.0,0.00021917,2]
[323273261,1713862239491,-500.0,0.00021917,2]
[323273263,1713862239500,-483.97185768,0.00021917,2]
[323273265,1713862239510,-500.0,0.00021917,2]
[323273267,1713862239519,-500.0,0.00021917,2]
[323273269,1713862239528,-500.0,0.00021917,2]
[323273271,1713862239537,-500.0,0.00021917,2]
[323273273,1713862239546,-500.0,0.00021917,2]
[323273275,1713862239555,-500.0,0.00021917,2]
[323273277,1713862239564,-492.50350801,0.00021917,2]
[323273279,1713862239573,-502.23074182,0.00021917,2]
[323273281,1713862239582,-500.0,0.00021917,2]
[323273283,1713862239592,-501.41139841,0.00021917,2]
[323273285,1713862239601,-500.0,0.00021917,2]
[323273287,1713862239610,-500.0,0.00021917,2]
[323273289,1713862239619,-500.0,0.00021917,2]
[323273291,1713862239628,-500.0,0.00021917,2]
[323273293,1713862239637,-500.0,0.00021917,2]
[323273295,1713862239646,-636.69,0.00021917,2]
[323273297,1713862239656,-1116.55,0.00021917,2]
[323273299,1713862239665,-708.62,0.00021917,2]
[323273301,1713862239674,-500.0,0.00021917,2]
[323273303,1713862239684,-500.0,0.00021917,2]
[323273305,1713862239693,-500.0,0.00021917,2]
[323273307,1713862239702,-500.0,0.00021917,2]
[323273308,1713862239712,-688.42,0.00021917,2]
[323273310,1713862239721,-497.80400615,0.00021917,2]
[323273312,1713862239730,-500.0,0.00021917,2]
[323273314,1713862239739,-500.0,0.00021917,2]
[323273316,1713862239751,-593.98005266,0.00021917,2]
[323273318,1713862239760,-500.0,0.00021917,2]
[323273320,1713862239770,-500.0,0.00021917,2]
[323273322,1713862239780,-500.0,0.00021917,2]
[323273324,1713862239790,-500.0,0.00021917,2]
[323273326,1713862239799,-500.0,0.00021917,2]
[323273328,1713862239808,-500.0,0.00021917,2]
[323273330,1713862239817,-500.0,0.00021917,2]
[323273332,1713862239828,-1076.43,0.00021917,2]
[323273334,1713862239839,-732.46,0.00021917,2]
[323273336,1713862239848,-500.0,0.00021917,2]
[323273339,1713862239858,-590.56174095,0.00021917,2]
[323273341,1713862239867,-500.0,0.00021917,2]
[323273343,1713862239876,-500.0,0.00021917,2]
[323273345,1713862239885,-500.0,0.00021917,2]
[323273347,1713862239894,-284.84502709,0.00021917,2]
[323273350,1713862239911,-215.15497291,0.00021917,2]
[323273352,1713862239920,-500.0,0.00021917,2]
[323273354,1713862239930,-500.0,0.00021917,2]
[323273355,1713862239940,-500.0,0.00021917,2]
[323273357,1713862239949,-500.0,0.00021917,2]
[323273359,1713862239959,-500.0,0.00021917,2]
[323273361,1713862239968,-500.0,0.00021917,2]
[323273363,1713862239976,-683.24,0.00021917,2]
[323273365,1713862239986,-500.0,0.00021917,2]
[323273367,1713862239995,-500.0,0.00021917,2]
[323273369,1713862240004,-515.77253081,0.00021917,2]
[323273371,1713862240013,-500.0,0.00021917,2]
[323273373,1713862240022,-500.0,0.00021917,2]
[323273375,1713862240031,-698.74,0.00021917,2]
[323273377,1713862240040,-500.0,0.00021917,2]
[323273379,1713862240049,-586.89,0.00021917,2]
[323273381,1713862240058,-512.86,0.00021917,2]
[323273383,1713862240068,-500.0,0.00021917,2]
[323273385,1713862240076,-500.0,0.00021917,2]
[323273387,1713862240086,-661.11,0.00021917,2]
[323273389,1713862240096,-500.0,0.00021917,2]
[323273391,1713862240105,-663.98,0.00021917,2]
[323273393,1713862240114,-500.0,0.00021917,2]
[323273394,1713862240124,-500.0,0.00021917,2]
[323273396,1713862240133,-500.0,0.00021917,2]
[323273397,1713862240142,-503.18245175,0.00021917,2]
[323273399,1713862240151,-500.0,0.00021917,2]
[323273401,1713862240160,-504.47375358,0.00021917,2]
[323273403,1713862240169,-500.0,0.00021917,2]
[323273405,1713862240178,-500.0,0.00021917,2]
[323273407,1713862240187,-500.0,0.00021917,2]
[323273409,1713862240197,-500.0,0.00021917,2]
[323273411,1713862240206,-1635.21,0.00021917,2]
[323273413,1713862240215,-500.0,0.00021917,2]
[323273415,1713862240224,-774.26,0.00021917,2]
[323273417,1713862240233,-2073.84,0.00021917,2]
[323273419,1713862240242,-500.0,0.00021917,2]
[323273421,1713862240251,-500.0,0.00021917,2]
[323273423,1713862240260,-758.39,0.00021917,2]
[323273424,1713862240269,-500.0,0.00021917,2]
[323273426,1713862240278,-509.29167593,0.00021917,2]
[323273428,1713862240287,-674.21,0.00021917,2]
[323273430,1713862240296,-1071.1,0.00021917,2]
[323273432,1713862240305,-500.0,0.00021917,2]
[323273434,1713862240314,-726.54,0.00021917,2]
[323273436,1713862240323,-500.0,0.00021917,2]
[323273438,1713862240332,-500.0,0.00021917,2]
[323273440,1713862240343,-500.0,0.00021917,2]
[323273442,1713862240352,-500.0,0.00021917,2]
[323273444,1713862240361,-500.0,0.00021917,2]
[323273446,1713862240370,-599.08527048,0.00021917,2]
[323273448,1713862240379,-500.23229112,0.00021917,2]
[323273450,1713862240388,-455.06703559,0.00021917,2]
[323273452,1713862240396,-500.25477317,0.00021917,2]
[323273454,1713862240405,-500.0,0.00021917,2]
[323273455,1713862240415,-500.0,0.00021917,2]
[323273457,1713862240423,-500.0,0.00021917,2]
[323273459,1713862240433,-500.0,0.00021917,2]
[323273461,1713862240441,-500.0,0.00021917,2]
[323273463,1713862240451,-1133.6,0.00021917,2]
[323273465,1713862240460,-500.0,0.00021917,2]
[323273467,1713862240469,-500.0,0.00021917,2]
[323273469,1713862240479,-1022.29,0.00021917,2]
[323273471,1713862240489,-500.0,0.00021917,2]
[323273473,1713862240500,-562.09,0.00021917,2]
[323273475,1713862240509,-500.0,0.00021917,2]
[323273477,1713862240518,-500.0,0.00021917,2]
[323273479,1713862240527,-500.0,0.00021917,2]
[323273481,1713862240536,-500.0,0.00021917,2]
[323273483,1713862240545,-500.0,0.00021917,2]
[323273485,1713862240554,-1781.42,0.00021917,2]
[323273487,1713862240563,-2416.76,0.00021917,2]
[323273489,1713862240572,-500.0,0.00021917,2]
[323273491,1713862240581,-500.0,0.00021917,2]
[323273493,1713862240591,-500.0,0.00021917,2]
[323273495,1713862240600,-500.0,0.00021917,2]
[323273497,1713862240609,-500.0,0.00021917,2]
[323273499,1713862240618,-500.0,0.00021917,2]
[323273501,1713862240627,-1716.3,0.00021917,2]
[323273503,1713862240635,-500.0,0.00021917,2]
[323273505,1713862240644,-1509.49,0.00021917,2]
[323273507,1713862240653,-500.1855086,0.00021917,2]
[323273509,1713862240662,-500.0,0.00021917,2]
[323273510,1713862240672,-500.0,0.00021917,2]
[323273512,1713862240681,-518.33017643,0.00021917,2]
[323273514,1713862240692,-500.4,0.00021917,2]
[323273517,1713862240702,-621.25041555,0.00021917,2]
[323273518,1713862240711,-172.521216,0.00021917,2]
[323273520,1713862240720,-500.0,0.00021917,2]
[323273522,1713862240729,-500.0,0.00021917,2]
[323273524,1713862240738,-500.0,0.00021917,2]
[323273526,1713862240751,-500.0,0.00021917,2]
[323273528,1713862240759,-500.0,0.00021917,2]
[323273530,1713862240769,-500.0,0.00021917,2]
[323273532,1713862240778,-500.45958164,0.00021917,2]
[323273534,1713862240788,-500.0,0.00021917,2]
[323273536,1713862240797,-500.0,0.00021917,2]
[323273538,1713862240806,-500.0,0.00021917,2]
[323273540,1713862240815,-500.0,0.00021917,2]
[323273542,1713862240824,-2227.52,0.00021917,2]
[323273544,1713862240836,-500.0,0.00021917,2]
[323273546,1713862240845,-2257.1,0.00021917,2]
[323273548,1713862240853,-500.0,0.00021917,2]
[323273550,1713862240862,-500.0,0.00021917,2]
[323273552,1713862240872,-500.0,0.00021917,2]
[323273554,1713862240881,-500.0,0.00021917,2]
[323273556,1713862240890,-500.0,0.00021917,2]
[323273557,1713862240900,-500.0,0.00021917,2]
[323273559,1713862240911,-500.0,0.00021917,2]
[323273561,1713862240920,-500.0,0.00021917,2]
[323273563,1713862240929,-500.0,0.00021917,2]
[323273565,1713862240938,-500.0,0.00021917,2]
[323273567,1713862240948,-500.0,0.00021917,2]
[323273569,1713862240956,-500.0,0.00021917,2]
[323273571,1713862240968,-500.0,0.00021917,2]
[323273573,1713862240977,-500.0,0.00021917,2]
[323273575,1713862240987,-500.0,0.00021917,2]
[323273577,1713862240996,-500.0,0.00021917,2]
[323273579,1713862241005,-10069.4,0.00021917,2]
[323273581,1713862241014,-500.0,0.00021917,2]
[323273583,1713862241023,-500.0,0.00021917,2]
[323273585,1713862241035,-500.0,0.00021917,2]
[323273587,1713862241044,-527.59,0.00021917,2]
[323273589,1713862241053,-1576.98716185,0.00021917,2]
[323273591,1713862241067,-264.81283815,0.00021917,2]
[323273593,1713862241077,-500.0,0.00021917,2]
[323273595,1713862241086,-500.0,0.00021917,2]
[323273597,1713862241096,-658.86,0.00021917,2]
[323273599,1713862241105,-500.0,0.00021917,2]